{"text_format":"1","workbook":"xlsx","n_sheets":2,"sheets":["通貨の交換","交換レート"],"not_rendered":{"charts":0,"images":1,"macros":1,"external_links":0,"defined_names":7,"comments":0,"pivot_tables":0},"unopened":[],"bounds":{"document_bytes":16777216,"sheet_cells":100000,"rows_first":2000,"rows_last":500,"rows_between":2000,"halvings":0,"cell_chars":16384,"cell_head_chars":4096},"cells_cut":0,"cells_raw":0,"read":"whole","date_system":"1900"}

{"sheet":"通貨の交換","index":0,"n_rows":10,"n_cols":5,"rows_kept":10,"cut":false,"hidden":false,"merged":[]}
[]
[]
[]
[]
[null,null,null,41,6000]
[]
[]
[]
[]
[null,null,null,19,{"$f":"IFERROR(IF(OR(通貨から=0,通貨へ=0),\"\",金額から/OFFSET(通貨,通貨から-1,3,1,1)*OFFSET(通貨,通貨へ-1,3,1,1)),\"\")","v":477840}]

{"sheet":"交換レート","index":1,"n_rows":48,"n_cols":2,"rows_kept":48,"cut":false,"hidden":false,"merged":[]}
["交換レート"]
["このシートのデータは、MSN Money の Web クエリから取得しました。通貨の交換シートの [交換レートの更新] ボタンをクリックすると、データが更新されます。"]
[]
[]
[]
[null,"リスト名"]
[null,{"$f":"IF(ISERROR(FIND(\" →米ドル\",C7)),C7,LEFT(C7,FIND(\" →米ドル\",C7)-1))","v":"Argentine Peso to US Dollar"}]
[null,{"$f":"IF(ISERROR(FIND(\" →米ドル\",C8)),C8,LEFT(C8,FIND(\" →米ドル\",C8)-1))","v":"Australian Dollar to US Dollar"}]
[null,"Bahraini Dinar to US Dollar"]
[null,"Bolivian Boliviano to US Dollar"]
[null,"Brazilian Real to US Dollar"]
[null,"British Pound to US Dollar"]
[null,"Canadian Dollar to US Dollar"]
[null,"Chile Peso to US Dollar"]
[null,"Chinese Yuan to US Dollar"]
[null,"Colombian Peso to US Dollar"]
[null,"Czech Koruna to US Dollar"]
[null,"Danish Krone to US Dollar"]
[null,"Euro to US Dollar"]
[null,"Egyptian Pound* to US Dollar"]
[null,"Hong Kong Dollar to US Dollar"]
[null,"Hungarian Forint to US Dollar"]
[null,"Indian Rupee to US Dollar"]
[null,"Indonesia Rupiah to US Dollar"]
[null,"Japanese Yen to US Dollar"]
[null,"Jordanian Dinar to US Dollar"]
[null,"Kenyan Shilling to US Dollar"]
[null,"South Korean Won to US Dollar"]
[null,"Kuwaiti Dinar to US Dollar"]
[null,"Morocco Dirham to US Dollar"]
[null,"Malaysian Ringgit to US Dollar"]
[null,"Mexican Peso to US Dollar"]
[null,"Norwegian Krone to US Dollar"]
[null,"Omani Rial to US Dollar"]
[null,"Peruvian New Sol to US Dollar"]
[null,"Philippine Peso to US Dollar"]
[null,"Pakistani Rupee to US Dollar"]
[null,"Saudi Riyal to US Dollar"]
[null,"Singapore Dollar to US Dollar"]
[null,"South African Rand to US Dollar"]
[null,"Swedish Krona to US Dollar"]
[null,"Swiss Franc to US Dollar"]
[null,"Taiwan Dollar to US Dollar"]
[null,"Thai Baht to US Dollar"]
[null,"Tunisian Dinar to US Dollar"]
[null,"Emirati Dirham to US Dollar"]
[null,"United States Dollar"]
[null,"Venezuelan Bolivar to US Dollar"]